Workbook

Sheet Solution
A1: Solution for Exam 15th of December 2014, problem 3 & 4
A4: Parameter | B4: Value
A5: MTTF | B5: =8760*2 -> 17520
A6: lambda | B6: 1e-05
A7: C_PM | B7: 15000
A8: C_FT | B8: 3000
A9: C_CR | B9: 30000
A10: C_U | B10: 20000
A11: C_Trip | B11: 50000
A12: C_H | B12: 10000000
A13: MDT | B13: 8
A14: tau_PM | B14: 5000.214639
A15: tau_FT | B15: =8760/2 -> 4380 | C15: =8760/2 -> 4380
A16: lambda_E | B16: =0.71*tau_PM^2/MTTF^3 -> 3.300907373e-06 | C16: =ShowFormula(B16) -> =0.71*tau_PM^2/MTTF^3
A17: PFD | B17: =lambda*tau_FT/2 -> 0.0219 | C17: =ShowFormula(B17) -> =lambda*tau_FT/2
A18: Cost per hour | B18: =C_PM/tau_PM+C_FT/tau_FT+lambda_E*(C_CR+(1-PFD)*(C_Trip+C_U*MDT)+PFD*C_H) -> 5.18473834 | C18: =C_PM/tau_PM+C_FT/tau_FT+lambda_E*(C_CR+(1-PFD)*(C_Trip+C_U*MDT)+PFD*C_H)
A19: Cost per year | B19: =Cost_per_hour*8760 -> 45418.30786 | C19: =Cost_per_hour*8760
A21: C_I | B21: =1000 -> 1000 | F21: t | G21: Q0(t)
A22: f_P | B22: =1/(1.5*8760) -> 7.610350076e-05 | F22: 500 | G22: =Q0(F22,E_PF,SD_PF,q) -> 0.0002555371029
A23: E_PF | B23: =8760/2 -> 4380 | F23: =F22+500 -> 1000 | G23: =Q0(F23,E_PF,SD_PF,q) -> 0.006771991029
A24: SD_PF | B24: =E_PF/3 -> 1460 | F24: =F23+500 -> 1500 | G24: =Q0(F24,E_PF,SD_PF,q) -> 0.02800066583
A25: q | B25: 0.2 | F25: 2000 | G25: 0.06197461486
A26: tau_I | B26: 1019.778695 | F26: 2500 | G26: 0.1027147025
A27: Cost per hour I | B27: =C_I/tau_I+C_FT/tau_FT+f_P*Q0(tau_I,E_PF,SD_PF,q)*(C_CR+(1-PFD)*(C_Trip+C_U*MDT)+PFD*C_H) + f_P*C_PM -> 3.059869821 | F27: 3000 | G27: 0.1466723531
F28: 3500 | G28: 0.1903567314
F29: 4000 | G29: 0.2339137346
A31: Solution
A33: 3a)
A34: C(tau_PM,tau_FT) | B34: =ShowFormula(Cost_per_hour) -> =C_PM/tau_PM+C_FT/tau_FT+lambda_E*(C_CR+(1-PFD)*(C_Trip+C_U*MDT)+PFD*C_H)
A36: where | B36: lambda_E | C36: =ShowFormula(B16) -> =0.71*tau_PM^2/MTTF^3
B37: PFD | C37: =ShowFormula(B17) -> =lambda*tau_FT/2
A39: 3b)
A40: tau_pm_optim | B40: =MTTF*(C_PM/(2*0.71*(C_CR+(1-PFD)*(C_Trip+C_U*MDT)+PFD*C_H)))^(1/3) -> 5000.214639 | C40: =ShowFormula(B40) -> =MTTF*(C_PM/(2*0.71*(C_CR+(1-PFD)*(C_Trip+C_U*MDT)+PFD*C_H)))^(1/3)
C42: =Cost_per_hour -> 5.18473834
B43: 3500 | C43: 5.705551145
B44: =B43+500 -> 4000 | C44: 5.394807885
B45: =B44+500 -> 4500 | C45: 5.233108382
B46: 5000 | C46: 5.184738348
B47: 5500 | C47: 5.226970512
B48: 6000 | C48: 5.344653359
B49: 6500 | C49: 5.527297377
A51: tau_ft_optim | B51: =SQRT(2*C_FT/(lambda*lambda_E*C_H)) -> 4263.428228 | C51: =ShowFormula(B51) -> =SQRT(2*C_FT/(lambda*lambda_E*C_H))
B53: where we have ignored the term (1-PFD)*(C_Trip+C_U*MDT) in the cost function. With this term the interval is slightly higher
A55: Problem 4a
A56: C(tau_I,tau_FT) | B56: =ShowFormula(Cost_per_hour_I) -> =C_I/tau_I+C_FT/tau_FT+f_P*Q0(tau_I,E_PF,SD_PF,q)*(C_CR+(1-PFD)*(C_Trip+C_U*MDT)+PFD*C_H) + f_P*C_PM
C58: =Cost_per_hour_I -> 3.059869821
B59: 500 | C59: 3.835320876
A60: Minimum | B60: =B59+500 -> 1000 | C60: 3.060669672
B61: =B60+500 -> 1500 | C61: 3.461455902
B62: 2000 | C62: 4.469659586
B63: 2500 | C63: 5.778513206
B64: 3000 | C64: 7.231968337
B65: 3500 | C65: 8.695020915
B66: 4000 | C66: 10.16557343
A69: It pays off!
